bitfinex-derivatives/quotes_SOLF0:USTF0_20250528
["timestamp","ask_amount","ask_price","bid_price","bid_amount"]
[1748397726111,5.7061,175.16,175.15,31.42]
[1748397726414,2.0188,175.21,175.15,31.42]
[1748397726601,5.7059,175.17,175.16,0.04080164]
[1748397728412,5.7052,175.19,175.16,0.04080164]
[1748397728808,0.03921727,175.2,175.16,0.04080164]
[1748397729010,5.74431727,175.2,175.16,5.74690164]
[1748397729213,0.03921727,175.2,175.16,0.04080164]
[1748397729714,5.7052,175.19,175.16,5.74670164]
[1748397730213,5.7052,175.19,175.16,0.04080164]
[1748397730714,10.74355533,175.14,174.95,10.74355533]
[1748397730912,37.1563,175.13,174.97,5.7123]
[1748397731113,37.1563,175.13,174.93,146.68]
[1748397731417,37.1563,175.13,174.93,31.42]
[1748397731614,0.04019012,175.05,175.01,0.04383294]
[1748397731806,0.04325334,175.05,175.01,0.04050577]
[1748397732212,5.7103,175.04,175.01,0.04050577]
[1748397732613,0.04325334,175.05,175.01,5.75150577]
[1748397732810,0.04325334,175.05,175.01,0.04050577]
[1748397733314,0.04325334,175.05,175.01,5.75130577]
[1748397734113,0.04325334,175.05,175.01,0.04050577]
[1748397734309,5.7101,175.04,175.01,0.04050577]
[1748397734508,0.04325334,175.05,175.01,0.04050577]
[1748397736009,0.04325334,175.05,175.04,5.71]
[1748397736415,31.44,175.1,175.05,5.7094]
[1748397736809,31.44,175.1,175.03,31.44]
[1748397737213,31.44,175.1,175.06,5.7092]
[1748397737419,31.48368003,175.1,175.06,5.74761745]
[1748397738107,31.48368003,175.1,175.07,5.7088]
[1748397738308,0.04368003,175.1,175.06,0.03841745]
[1748397738913,0.04368003,175.1,175.08,5.7085]
[1748397739313,0.04368003,175.1,175.06,0.03841745]
[1748397739713,0.04368003,175.1,175.08,5.7087]
[1748397740018,0.04368003,175.1,175.06,0.03841745]
[1748397741524,0.04368003,175.1,175.07,5.709]
[1748397742416,0.04368003,175.1,175.06,0.03841745]
[1748397742611,0.04368003,175.1,175.07,5.709]
[1748397744516,0.04368003,175.1,175.06,0.03841745]
[1748397745214,0.04368003,175.1,175.07,5.709]
[1748397746124,0.04368003,175.1,175.06,0.03841745]
[1748397746328,0.04368003,175.1,175.07,31.26]
[1748397746624,5.706,175.17,175.07,42.00355533]
[1748397746823,31.26,175.18,175.07,42.00355533]
[1748397747025,31.26,175.22,175.07,42.00355533]
[1748397747220,31.26,175.22,175.11,10.74355533]
[1748397747416,31.26,175.22,175.15,0.0413236]
[1748397747621,0.03707746,175.18,175.15,0.0413236]
[1748397748813,5.7041,175.23,175.18,5.7054]
[1748397749123,31.24,175.26,175.18,5.7054]
[1748397749323,5.7041,175.23,175.18,5.7054]
[1748397749519,31.24,175.26,175.19,5.7052]
[1748397749920,5.74492196,175.24,175.21,0.03965968]
[1748397750220,0.04122196,175.24,175.21,0.03965968]
[1748397750826,0.04122196,175.24,175.21,5.74405968]
[1748397751128,0.04122196,175.24,175.21,0.03965968]
[1748397751321,0.04122196,175.24,175.22,5.7039]
[1748397751521,0.04122196,175.24,175.22,31.24]
[1748397751722,3.8153,175.33,175.22,33.2849]
[1748397751928,1.921,175.33,175.27,5.7025]
[1748397752124,1.921,175.33,175.22,35.1466]
[1748397752527,1.921,175.33,175.23,5.7038]
[1748397752722,5.73792728,175.3,175.26,0.04072356]
[1748397753423,5.702,175.29,175.26,0.04072356]
[1748397755126,5.7023,175.28,175.26,0.04072356]
[1748397755322,0.03602728,175.3,175.26,0.04072356]
[1748397755530,5.7026,175.27,175.26,0.04072356]
[1748397755727,0.03602728,175.3,175.22,31.24]
[1748397755927,31.24,175.29,175.22,31.24]
[1748397756423,31.24,175.29,175.23,5.7038]
[1748397756623,33.161,175.33,175.24,0.03914237]
[1748397756931,5.74368415,175.28,175.24,0.03914237]
[1748397757126,0.04118415,175.28,175.24,5.74254237]
[1748397757729,0.04118415,175.28,175.25,5.7032]
[1748397758329,0.04118415,175.28,175.24,0.03914237]
[1748397760131,5.7031,175.26,175.24,0.03914237]
[1748397760434,5.7032,175.25,175.24,0.03914237]
[1748397760827,0.04118415,175.28,175.24,0.03914237]
[1748397761828,5.7032,175.25,175.24,0.03914237]
[1748397762629,0.04118415,175.28,175.24,0.03914237]
[1748397763230,5.7032,175.25,175.24,0.03914237]
[1748397764236,5.703,175.26,175.24,0.03914237]
[1748397766136,5.7027,175.27,175.24,0.03914237]
[1748397766535,0.04118415,175.28,175.24,0.03914237]
[1748397766736,5.7031,175.26,175.24,0.03914237]
[1748397767030,0.04118415,175.28,175.24,0.03914237]
[1748397767532,5.7032,175.25,175.24,0.03914237]
[1748397769641,5.703,175.26,175.24,0.03914237]
[1748397771236,0.04118415,175.28,175.24,0.03914237]
[1748397771237,5.7027,175.27,175.24,0.03914237]
[1748397771739,0.04118415,175.28,175.24,5.74264237]
[1748397771740,5.74348415,175.28,175.24,5.74264237]
[1748397772037,0.04118415,175.28,175.24,0.03914237]
[1748397772340,0.04118415,175.28,175.26,5.7028]
[1748397772841,0.04118415,175.28,175.24,0.03914237]
[1748397773438,5.7032,175.25,175.24,0.03914237]
[1748397780450,5.7051,175.2,175.18,31.12]
[1748397780635,1.9037,175.27,175.18,31.12]
[1748397780840,1.9037,175.27,175.21,5.7044]
[1748397781034,2.0259,175.32,175.18,31.12]
[1748397781240,31.12,175.31,175.18,31.12]
[1748397781442,31.12,175.31,175.23,0.03832435]
[1748397781646,0.04271718,175.26,175.23,0.03832435]
[1748397782745,5.74571718,175.26,175.23,0.03832435]
[1748397783648,0.04271718,175.26,175.23,5.74202435]
[1748397783841,0.04271718,175.26,175.23,0.03832435]
[1748397784041,0.04271718,175.26,175.23,31.15832435]
[1748397784245,0.04271718,175.26,175.25,5.7032]
[1748397785446,0.04271718,175.26,175.24,5.7035]
[1748397786548,0.04271718,175.26,175.23,36.86212435]
[1748397786852,0.04271718,175.26,175.23,31.15832435]
[1748397787052,1.921,175.33,175.23,41.90187968]
[1748397787251,1.921,175.33,175.24,3.9628]
[1748397787849,5.7012,175.32,175.26,5.7026]
[1748397788045,1.921,175.33,175.27,0.03812096]
[1748397788249,0.036064,175.31,175.27,0.03812096]
[1748397789855,5.7022,175.28,175.27,0.03812096]
[1748397791857,5.7035,175.24,175.23,31.12]
[1748397792154,13.3368,175.32,175.19,31.12]
[1748397792355,5.7038,175.24,175.2,5.7046]
[1748397792858,5.74059019,175.24,175.2,0.0437782]
[1748397793052,5.74059019,175.24,175.21,5.7045]
[1748397793448,0.03679019,175.24,175.2,0.0437782]
[1748397794557,5.7039,175.23,175.2,0.0437782]
[1748397794753,5.7039,175.23,175.2,5.7483782]
[1748397794959,0.03679019,175.24,175.2,0.0437782]
[1748397795353,5.7039,175.23,175.2,5.7484782]
[1748397795960,5.7039,175.23,175.2,0.0437782]
[1748397796863,5.7043,175.22,175.2,0.0437782]
[1748397797162,0.03679019,175.24,175.2,0.0437782]
[1748397798564,0.03679019,175.24,175.21,5.7044]
[1748397798863,0.03679019,175.24,175.2,0.0437782]
[1748397799166,0.03679019,175.24,175.23,5.7039]
[1748397800359,0.03679019,175.24,175.23,36.5039]
[1748397801768,0.03679019,175.24,175.23,30.8]
[1748397803168,0.03679019,175.24,175.23,36.5039]
[1748397805072,33.041,175.33,175.26,5.7028]
[1748397805568,5.7019,175.29,175.23,30.8]
[1748397805771,33.041,175.33,175.26,5.7029]
[1748397805967,39.62673037,175.33,175.23,30.8]
[1748397806169,6.62612112,175.3,175.26,0.03773941]
[1748397806370,1.8706,175.29,175.26,0.03773941]
[1748397806666,5.7026,175.27,175.26,0.03773941]
[1748397810573,6.58573037,175.27,175.19,30.8]
[1748397810771,6.58573037,175.27,175.19,36.505]
[1748397811073,5.7044,175.22,175.19,36.505]
[1748397811368,6.58573037,175.27,175.19,36.505]
[1748397811570,5.7048,175.2,175.19,0.03659713]
[1748397814367,0.04032842,175.22,175.19,0.03659713]
[1748397814873,5.7048,175.2,175.19,0.03659713]
[1748397815276,0.04032842,175.22,175.19,0.03659713]
[1748397815572,5.7048,175.2,175.19,0.03659713]
[1748397818873,30.84032842,175.22,175.12,5.7074]
[1748397819080,1.8727,175.21,175.12,5.7074]
[1748397819579,5.7063,175.16,175.13,5.7071]
[1748397819780,1.8727,175.21,175.13,5.7071]
[1748397819982,0.0421948,175.19,175.15,0.04059157]
[1748397820178,5.7065,175.16,175.15,0.04059157]
[1748397821876,0.0421948,175.19,175.06,32.8172]
[1748397821877,41.54798003,175.18,175.06,32.8172]
[1748397822073,2.53938954,175.17,175.06,32.8172]
[1748397822781,43.54238003,175.18,175.06,32.8172]
[1748397823082,5.7078,175.11,175.1,0.03757503]
[1748397828297,0.04243654,175.13,175.1,0.03757503]
[1748397828774,0.04243654,175.13,175.1,30.85757503]
[1748397829179,1.9785,175.23,175.1,41.60555506]
[1748397829388,1.9785,175.23,175.11,1.9949]
[1748397829588,1.9785,175.23,175.11,3.952]
[1748397830273,0.04369285,175.19,175.15,0.04117114]
[1748397830878,5.7057,175.18,175.15,0.04117114]
[1748397831082,0.04369285,175.19,175.15,0.04117114]
[1748397831280,5.74899285,175.19,175.15,0.04117114]
[1748397831479,0.04369285,175.19,175.15,0.04117114]
[1748397832676,5.7061,175.16,175.15,0.04117114]
[1748397836583,0.04369285,175.19,175.15,0.04117114]
[1748397837775,5.7061,175.16,175.15,0.04117114]
[1748397839388,5.7059,175.17,175.15,0.04117114]
[1748397839784,0.04369285,175.19,175.15,0.04117114]
[1748397840283,5.7061,175.16,175.15,0.04117114]
[1748397840482,0.04369285,175.19,175.1,30.56]
[1748397840684,30.56,175.2,175.1,30.56]
[1748397840881,5.7077,175.12,175.1,30.56]
[1748397841979,5.7078,175.11,175.1,30.56]
[1748397843591,0.04288712,175.13,175.1,30.56]
[1748397843792,2.0151,175.22,175.14,5.7066]
[1748397844087,5.7054,175.19,175.14,36.2666]
[1748397844590,5.7054,175.19,175.15,5.7063]
[1748397844795,5.7055,175.18,175.15,5.74641254]
[1748397844985,0.04000614,175.19,175.15,5.74641254]
[1748397845289,5.74540614,175.19,175.15,5.74641254]
[1748397845890,30.56,175.18,175.08,30.56]
[1748397846083,32.4908,175.18,175.06,30.56]
[1748397846281,32.4908,175.18,175.08,5.7085]
[1748397846486,32.4908,175.18,175.06,30.56]
[1748397847098,0.04297077,175.14,175.1,0.04373698]
[1748397847992,5.7075,175.12,175.1,0.04373698]
[1748397848285,0.04297077,175.14,175.1,0.04373698]
[1748397848887,5.7078,175.11,175.1,0.04373698]
[1748397857704,5.7073,175.13,175.1,0.04373698]
[1748397860002,0.04297077,175.14,175.1,0.04373698]
[1748397860406,5.7078,175.11,175.1,0.04373698]
[1748397864105,5.7078,175.11,175.1,3.698e-05]
[1748397869114,30.44297077,175.14,175.1,3.698e-05]
[1748397869417,30.4,175.13,175.1,3.698e-05]
[1748397869719,5.7078,175.11,175.1,3.698e-05]
[1748397875418,5.7077,175.12,175.1,3.698e-05]
[1748397875818,0.04297077,175.14,175.1,3.698e-05]
[1748397876117,5.7072,175.13,175.1,3.698e-05]
[1748397876518,5.7075,175.12,175.1,3.698e-05]
[1748397876928,0.04297077,175.14,175.1,3.698e-05]
[1748397877221,5.7072,175.13,175.1,3.698e-05]
[1748397877419,0.04297077,175.14,175.1,5.70783698]
[1748397878123,0.04297077,175.14,175.1,3.698e-05]
[1748397878822,5.7076,175.12,175.1,3.698e-05]
[1748397879125,0.04297077,175.14,175.1,3.698e-05]
[1748397879624,5.7078,175.11,175.1,3.698e-05]
[1748397891231,6.5958806,175.11,175.01,30.18]
[1748397891434,6.5958806,175.08,174.95,30.18]
[1748397891736,36.7758806,175.08,174.96,5.7457]
[1748397891933,30.18,175.08,175.02,5.7106]
[1748397892129,30.18,175.12,175.0,36.7758806]
[1748397892335,5.7093,175.07,175.04,0.04020704]
[1748397892535,0.04344347,175.08,175.04,0.04020704]
[1748397892735,5.7097,175.05,175.04,0.04020704]
[1748397893940,5.7095,175.06,175.04,0.04020704]
[1748397894237,0.04344347,175.08,175.04,0.04020704]
[1748397894441,5.7097,175.05,175.04,0.04020704]
[1748397895641,5.7097,175.05,174.92,113.84]
[1748397895642,6.5958806,175.07,174.91,4.6085623]
[1748397895843,30.18,175.06,174.92,3.8911]
[1748397896034,6.5958806,175.05,174.92,3.8911]
[1748397896235,5.7116,175.0,174.96,5.7126]
[1748397896441,6.5958806,175.05,174.92,10.4869806]
[1748397896745,6.5958806,175.05,174.97,0.04189426]
[1748397896746,0.04254539,175.0,174.97,0.04189426]
[1748397898042,0.04254539,175.0,174.97,5.75419426]
[1748397898243,0.04254539,175.0,174.97,0.04189426]
[1748397899342,31.78,174.99,174.91,4.6085623]
[1748397899540,6.5958806,174.98,174.91,4.6085623]
[1748397899845,31.78,175.01,174.91,4.6085623]
[1748397900050,31.78,175.01,174.92,2.0413]
[1748397900542,0.04162444,174.98,174.95,0.03039012]
[1748397901344,0.04162444,174.98,174.96,31.78]
[1748397903046,0.04162444,174.98,174.95,0.03039012]
[1748397903843,5.7126,174.96,174.95,0.03039012]
[1748397906242,5.714,174.92,174.91,4.6085623]
[1748397907548,6.63655356,174.93,174.81,31.78]
[1748397907755,0.04229809,174.89,174.81,35.7673]
[1748397908050,5.7158,174.87,174.82,5.717]
[1748397908244,0.04229809,174.89,174.81,35.7673]
[1748397908642,0.04229809,174.89,174.81,33.8395]
[1748397910144,0.04229809,174.89,174.85,5.7162]
[1748397910551,0.04229809,174.89,174.81,33.8395]
[1748397911452,0.04229809,174.89,174.85,5.7161]
[1748397912349,0.04229809,174.89,174.86,5.7158]
[1748397912556,0.04229809,174.89,174.81,33.8395]
[1748397913251,6.5958806,174.88,174.77,495.4278]
[1748397913550,0.03700421,174.84,174.8,5.7177]
[1748397913951,0.03700421,174.84,174.77,1.9278]
[1748397915051,0.03700421,174.84,174.77,8.5236806]
[1748397915251,0.03700421,174.84,174.78,31.8]
[1748397915846,0.03700421,174.84,174.83,5.7169]
[1748397916357,0.03700421,174.84,174.78,31.8]
[1748397916854,0.03700421,174.84,174.83,5.7169]
[1748397917055,0.03700421,174.84,174.78,31.8]
[1748397917455,0.03700421,174.84,174.8,5.7177]
[1748397918257,0.03700421,174.84,174.81,5.7174]
[1748397918559,0.03700421,174.84,174.78,31.8]
[1748397918754,0.03700421,174.84,174.79,5.7182]
[1748397919156,5.7169,174.83,174.78,31.8]
[1748397919450,0.03700421,174.84,174.78,37.5185]
[1748397919657,5.75370421,174.84,174.78,31.8]
[1748397919847,0.03700421,174.84,174.78,31.8]
[1748397920048,0.03700421,174.84,174.78,37.5185]
[1748397920454,5.75370421,174.84,174.78,37.5185]
[1748397921458,0.03700421,174.84,174.78,37.5185]
[1748397922156,0.03700421,174.84,174.79,5.718]
[1748397922958,0.03700421,174.84,174.78,37.5185]
[1748397923253,0.03700421,174.84,174.78,31.8]
[1748397924158,0.03700421,174.84,174.78,37.5184]
[1748397924560,0.03700421,174.84,174.78,31.8]
[1748397924864,0.03700421,174.84,174.79,5.7181]
[1748397926257,5.75360421,174.84,174.78,37.5184]
[1748397926461,0.03700421,174.84,174.78,37.5184]
[1748397927867,0.03700421,174.84,174.78,31.8]
[1748397928172,1.9854,174.95,174.79,6.5958806]
[1748397928173,33.6716,174.94,174.79,6.5958806]
[1748397928459,33.6716,174.94,174.78,31.8]
[1748397928460,33.6716,174.94,174.82,6.5958806]
[1748397928662,33.6716,174.94,174.83,33.8358]
[1748397929061,0.04083926,174.9,174.87,0.03700421]
[1748397931465,0.04083926,174.9,174.88,32.48]
[1748397933071,6.5958806,175.0,174.88,32.48]
[1748397933272,6.5958806,175.0,174.85,6.5958806]
[1748397933472,6.5958806,175.0,174.88,5.7151]
[1748397933773,5.7129,174.96,174.86,32.48]
[1748397933967,0.04311272,174.93,174.89,0.03840515]
[1748397935574,0.04311272,174.93,174.89,5.75330515]
[1748397935979,0.04311272,174.93,174.9,1.967]
[1748397936273,0.04311272,174.93,174.9,32.48]
[1748397941571,5.75701272,174.93,174.9,32.48]
[1748397941780,0.04311272,174.93,174.9,32.48]
[1748397949383,5.7143,174.91,174.9,32.48]
[1748397949776,0.04311272,174.93,174.9,32.48]
[1748397949972,5.75701272,174.93,174.9,32.48]
[1748397950187,0.04311272,174.93,174.9,32.48]
[1748397952983,5.75691272,174.93,174.9,32.48]
[1748397953889,5.7141,174.92,174.9,32.48]
[1748397954589,5.75691272,174.93,174.9,32.48]
[1748397954788,0.04311272,174.93,174.9,32.48]
[1748397955175,5.7142,174.92,174.9,32.48]
[1748397955479,0.04311272,174.93,174.9,32.48]
[1748397959484,0.04311272,174.93,174.91,5.7142]
[1748397959879,0.04311272,174.93,174.9,32.48]
[1748397960085,0.04311272,174.93,174.92,5.714]
[1748397961886,0.04311272,174.93,174.91,5.7142]
[1748397962879,0.04311272,174.93,174.9,38.1945]
[1748397963285,0.04311272,174.93,174.9,32.48]
[1748397964889,0.04311272,174.93,174.91,5.7142]
[1748397965699,0.04311272,174.93,174.9,32.48]
[1748397968390,0.04311272,174.93,174.9,38.1944]
[1748397968996,0.04311272,174.93,174.9,32.48]
[1748397970986,0.04311272,174.93,174.9,38.1944]
[1748397971300,0.04311272,174.93,174.9,32.48]
[1748397972692,0.04311272,174.93,174.9,38.1945]
[1748397974793,0.04311272,174.93,174.9,32.48]
[1748397976394,0.04311272,174.93,174.89,0.03840515]
[1748397976595,5.7142,174.92,174.89,0.03840515]
[1748397977097,5.75681272,174.93,174.89,5.75330515]
[1748397977498,0.04311272,174.93,174.89,5.75330515]
[1748397978001,0.04311272,174.93,174.9,5.7145]
[1748397978199,0.04311272,174.93,174.89,0.03840515]
[1748397978402,0.04311272,174.93,174.9,6.5958806]
[1748397978700,31.92,175.02,174.91,33.7889]
[1748397978899,5.7116,175.0,174.91,35.7123]
[1748397979198,5.7116,175.0,174.92,1.8804]
[1748397979394,5.7116,175.0,174.95,5.7128]
[1748397979597,0.03736032,174.99,174.96,0.0407406]
[1748397979995,0.03736032,174.99,174.97,5.7122]
[1748397980203,0.03736032,174.99,174.96,31.9607406]
[1748397981096,0.03736032,174.99,174.96,37.6732406]
[1748397982201,0.03736032,174.99,174.97,5.7122]
[1748397982702,0.03736032,174.99,174.96,31.9607406]
[1748397982901,0.03736032,174.99,174.97,5.7121]
[1748397984303,0.03736032,174.99,174.98,5.712]
[1748397985499,0.03736032,174.99,174.96,31.9607406]
[1748397986007,0.03736032,174.99,174.97,5.7122]
[1748397986605,0.03736032,174.99,174.96,31.9607406]
[1748397987200,0.03736032,174.99,174.96,0.0407406]
[1748397987405,12.35324092,174.99,174.88,31.92]
[1748397987600,5.81,175.01,174.87,31.92]
[1748397987806,5.81,175.01,174.88,1.8682]
[1748397988001,5.81,175.01,174.88,3.7516]
[1748397988198,5.81,175.01,174.89,6.5958806]
[1748397988409,0.04374874,174.97,174.93,0.04295988]
[1748397989198,5.7127,174.96,174.93,0.04295988]
[1748397989400,0.04374874,174.97,174.93,0.04295988]
[1748397990704,5.7133,174.95,174.93,0.04295988]
[1748397991003,0.04374874,174.97,174.93,0.04295988]
[1748397991204,31.52374874,174.97,174.93,0.04295988]
[1748397992307,31.52374874,174.97,174.93,5.75645988]
[1748397992503,31.52374874,174.97,174.93,0.04295988]
[1748397992698,31.52374874,174.97,174.94,5.7133]
[1748397993003,5.75614874,174.97,174.93,0.04295988]
[1748397993207,0.04374874,174.97,174.93,5.75645988]
[1748397993402,0.04374874,174.97,174.93,0.04295988]
[1748397993804,0.04374874,174.97,174.94,5.713]
[1748397994004,0.04374874,174.97,174.93,0.04295988]
[1748397994504,0.04374874,174.97,174.93,5.75645988]
[1748397995002,0.04374874,174.97,174.94,5.7131]
[1748397995201,0.04374874,174.97,174.93,0.04295988]
[1748397995804,0.04374874,174.97,174.95,5.7128]
[1748397996004,0.04374874,174.97,174.93,0.04295988]
[1748397996413,5.7129,174.96,174.93,0.04295988]
[1748397996704,0.04374874,174.97,174.93,0.04295988]
[1748397996911,5.7129,174.96,174.93,0.04295988]
[1748397997102,0.04374874,174.97,174.93,0.04295988]
[1748397997708,5.7128,174.96,174.93,0.04295988]
[1748397998308,0.04374874,174.97,174.93,0.04295988]
[1748397999113,5.7134,174.94,174.93,0.04295988]
[1748397999812,5.7128,174.96,174.93,0.04295988]
[1748398000013,0.04374874,174.97,174.93,0.04295988]
[1748398001013,5.7132,174.95,174.93,0.04295988]
[1748398001211,0.04374874,174.97,174.93,0.04295988]
[1748398001811,0.04374874,174.97,174.93,5.75655988]
[1748398003110,5.75614874,174.97,174.93,5.75655988]
[1748398003315,0.04374874,174.97,174.93,0.04295988]
[1748398003716,5.75614874,174.97,174.93,0.04295988]
[1748398004713,0.04374874,174.97,174.93,0.04295988]
[1748398005012,5.7128,174.96,174.93,0.04295988]
[1748398005215,0.04374874,174.97,174.93,0.04295988]
[1748398006717,5.7131,174.95,174.93,0.04295988]
[1748398007119,0.04374874,174.97,174.93,0.04295988]
[1748398007320,5.7133,174.95,174.93,0.04295988]
[1748398007517,0.04374874,174.97,174.93,0.04295988]
[1748398007724,5.7131,174.95,174.93,0.04295988]
[1748398008314,5.7128,174.96,174.93,0.04295988]
[1748398008522,0.04374874,174.97,174.93,0.04295988]
[1748398009018,5.7128,174.96,174.93,0.04295988]
[1748398009717,5.75624874,174.97,174.93,0.04295988]
[1748398010122,0.04374874,174.97,174.93,0.04295988]
[1748398011118,0.04374874,174.97,174.95,5.7128]
[1748398012125,0.04374874,174.97,174.96,5.7127]
[1748398012517,0.04374874,174.97,174.95,6.5958806]
[1748398012518,5.7106,175.03,174.95,8.5356806]
[1748398012720,5.7106,175.03,174.99,5.7117]
[1748398012920,5.7106,175.03,174.95,10.4108806]
[1748398013322,5.7106,175.03,174.98,5.7119]
[1748398013527,0.03747447,175.02,174.99,0.03803837]
[1748398014130,5.74827447,175.02,174.99,0.03803837]
[1748398015925,5.7111,175.01,174.99,0.03803837]
[1748398017334,5.74837447,175.02,174.99,0.03803837]
[1748398018631,5.7114,175.0,174.99,0.03803837]
[1748398020137,5.7112,175.01,174.99,0.03803837]
[1748398020530,0.03747447,175.02,174.99,0.03803837]
[1748398020929,5.7114,175.0,174.99,0.03803837]
[1748398021125,0.03747447,175.02,174.95,31.48]
[1748398021329,37.4958806,175.01,174.91,30.9]
[1748398021527,39.3787806,175.01,174.91,30.9]
[1748398021827,2.0573,175.0,174.91,30.9]
[1748398022227,0.04367491,174.97,174.94,0.03722074]
[1748398022536,5.7129,174.96,174.94,0.03722074]
[1748398023139,0.04367491,174.97,174.94,5.75052074]
[1748398023439,0.04367491,174.97,174.94,0.03722074]
[1748398023842,5.7129,174.96,174.94,0.03722074]
[1748398024044,0.04367491,174.97,174.94,0.03722074]
[1748398024539,5.713,174.96,174.94,0.03722074]
[1748398024942,0.04367491,174.97,174.94,0.03722074]
[1748398025839,0.04367491,174.97,174.95,5.7131]
[1748398026043,0.04367491,174.97,174.94,0.03722074]
[1748398026546,0.04367491,174.97,174.94,5.75042074]
[1748398026845,0.04367491,174.97,174.94,0.03722074]
[1748398027041,0.04367491,174.97,174.95,5.7129]
[1748398027242,0.04367491,174.97,174.94,0.03722074]
[1748398027543,0.04367491,174.97,174.96,5.7128]
[1748398028444,0.04367491,174.97,174.95,5.713]
[1748398028645,0.04367491,174.97,174.94,0.03722074]
[1748398028844,0.04367491,174.97,174.94,5.75052074]
[1748398029042,0.04367491,174.97,174.94,0.03722074]
[1748398029842,5.75637491,174.97,174.94,0.03722074]
[1748398031647,5.7129,174.96,174.94,0.03722074]
[1748398031844,0.04367491,174.97,174.94,0.03722074]
[1748398033049,5.75627491,174.97,174.94,0.03722074]
[1748398033248,0.04367491,174.97,174.94,0.03722074]
[1748398034449,5.7128,174.96,174.94,0.03722074]
[1748398035151,0.04367491,174.97,174.94,0.03722074]
[1748398035648,5.713,174.96,174.94,0.03722074]
[1748398036851,5.75627491,174.97,174.94,0.03722074]
[1748398038054,5.7128,174.96,174.94,0.03722074]
[1748398038846,5.7131,174.95,174.94,0.03722074]
[1748398039048,0.04367491,174.97,174.94,0.03722074]
[1748398039456,5.713,174.96,174.94,0.03722074]
[1748398040855,5.75617491,174.97,174.94,0.03722074]
[1748398042851,5.7129,174.96,174.94,0.03722074]
[1748398043254,5.75627491,174.97,174.94,0.03722074]
[1748398043455,0.04367491,174.97,174.94,0.03722074]
[1748398044154,5.7128,174.96,174.94,0.03722074]
[1748398046151,5.75627491,174.97,174.94,0.03722074]
[1748398046346,0.04367491,174.97,174.94,0.03722074]
[1748398046552,5.75637491,174.97,174.94,0.03722074]
[1748398047156,0.04367491,174.97,174.94,5.75042074]
[1748398047355,0.04367491,174.97,174.94,0.03722074]
[1748398047753,5.7104,175.04,174.95,30.92]
[1748398047954,2.0227,175.09,174.97,6.5958806]
[1748398048159,5.71,175.05,175.0,5.7113]
[1748398048754,0.03750254,175.04,175.01,5.75307765]
[1748398050359,0.03750254,175.04,175.01,0.04187765]
[1748398051561,0.03750254,175.04,175.02,5.7108]
[1748398051761,0.03750254,175.04,175.01,0.04187765]
[1748398052265,0.03750254,175.04,175.02,5.7108]
[1748398052456,0.03750254,175.04,175.03,30.76]
[1748398052859,0.03750254,175.04,175.03,36.4705]
[1748398053360,49.7385611,175.1,175.03,36.4705]
[1748398053361,39.3386806,175.14,175.05,5.7096]
[1748398054466,0.038392,175.11,175.08,0.03914427]
[1748398054668,5.7084,175.1,175.08,0.03914427]
[1748398055059,0.038392,175.11,175.08,0.03914427]
[1748398055256,5.746492,175.11,175.08,0.03914427]
[1748398056259,0.038392,175.11,175.08,0.03914427]
[1748398057366,5.7085,175.09,175.08,0.03914427]
[1748398076083,5.7102,175.04,175.03,144.3]
[1748398076393,11.4146,175.13,175.03,144.3]
[1748398076587,5.7101,175.05,175.03,144.3]
[1748398077087,5.7101,175.05,175.02,5.74743131]
[1748398077285,5.7101,175.05,175.02,36.48743131]
[1748398077482,5.7101,175.05,175.02,5.74743131]
[1748398077988,5.7101,175.05,175.02,30.77663131]
[1748398078485,5.74790334,175.06,175.02,144.23663131]
[1748398078683,0.03820334,175.06,175.02,144.23663131]
[1748398079085,5.74790334,175.06,175.02,149.94723131]
[1748398079284,5.74790334,175.06,175.02,144.23663131]
[1748398079480,0.03820334,175.06,175.02,144.23663131]
[1748398079682,0.03820334,175.06,175.03,5.7103]
[1748398080086,5.74790334,175.06,175.02,149.94733131]
[1748398080992,0.03820334,175.06,175.02,144.23663131]
[1748398081186,0.03820334,175.06,175.02,30.77663131]
[1748398081490,1.8734,175.15,175.03,120.0358806]
[1748398081696,1.8734,175.15,175.04,2.0419]
[1748398081887,5.7067,175.15,175.09,5.7083]
[1748398082395,0.04362462,175.14,175.1,0.03914771]
[1748398082584,0.04362462,175.14,175.1,5.74734771]
[1748398083399,0.04362462,175.14,175.11,5.7076]